fUSD/lending_fUSD_20240724
["ID","MTS","AMOUNT","RATE_DAILY","PERIOD"]
[333069258,1721818243769,-466.70599068,0.00011,2]
[333069269,1721818246496,-1105.52492979,0.00011,2]
[333069270,1721818246672,-698.75,0.00011,2]
[333069282,1721818350526,166.57535373,9.908e-05,2]
[333069285,1721818399945,500.0,9.828e-05,2]
[333069286,1721818400637,500.0,9.829e-05,2]
[333069287,1721818425884,961.18833488,9.908e-05,2]
[333069291,1721818525126,961.18833488,9.908e-05,2]
[333069296,1721818610245,192.14261377,9.983e-05,2]
[333069297,1721818636163,961.18833488,9.983e-05,2]
[333069298,1721818643122,160.64,8.219e-05,2]
[333069299,1721818684007,307.26,9.98e-05,2]
[333069300,1721818712375,151.0,2.9e-07,2]
[333069301,1721818713213,151.0,2.9e-07,2]
[333069302,1721818713885,151.0,2.9e-07,2]
[333069303,1721818714102,130.71508755,2.9e-07,2]
[333069304,1721818714124,20.28491245,2.9e-07,2]
[333069305,1721818714640,151.0,2.9e-07,2]
[333069306,1721818715120,151.0,2.9e-07,2]
[333069307,1721818715538,151.0,2.9e-07,2]
[333069308,1721818715957,151.0,2.9e-07,2]
[333069309,1721818716362,151.0,2.9e-07,2]
[333069310,1721818716801,151.0,2.9e-07,2]
[333069311,1721818717153,151.0,2.9e-07,2]
[333069312,1721818717577,151.0,2.9e-07,2]
[333069313,1721818718024,151.0,2.9e-07,2]
[333069314,1721818718128,961.18833488,8.219e-05,2]
[333069315,1721818718422,151.0,2.9e-07,2]
[333069316,1721818718883,151.0,2.9e-07,2]
[333069317,1721818719303,151.0,2.9e-07,2]
[333069318,1721818719679,151.0,2.9e-07,2]
[333069319,1721818720199,151.0,2.9e-07,2]
[333069320,1721818720694,151.0,2.9e-07,2]
[333069321,1721818721927,151.0,2.9e-07,2]
[333069322,1721818722202,151.0,2.9e-07,2]
[333069323,1721818722646,151.0,2.9e-07,2]
[333069324,1721818723433,151.0,2.9e-07,2]
[333069325,1721818723489,151.0,2.9e-07,2]
[333069326,1721818723944,151.0,2.9e-07,2]
[333069327,1721818724351,151.0,2.9e-07,2]
[333069328,1721818724789,151.0,2.9e-07,2]
[333069329,1721818725788,151.0,2.9e-07,2]
[333069330,1721818727098,151.0,2.9e-07,2]
[333069331,1721818727528,151.0,2.9e-07,2]
[333069332,1721818727997,151.0,2.9e-07,2]
[333069333,1721818728428,151.0,2.9e-07,2]
[333069334,1721818728837,151.0,2.9e-07,2]
[333069335,1721818729306,151.0,2.9e-07,2]
[333069336,1721818729727,151.0,2.9e-07,2]
[333069337,1721818730201,151.0,2.9e-07,2]
[333069338,1721818730802,151.0,2.9e-07,2]
[333069339,1721818732581,151.0,2.9e-07,2]
[333069340,1721818733086,151.0,2.9e-07,2]
[333069341,1721818733527,151.0,2.9e-07,2]
[333069342,1721818733943,151.0,2.9e-07,2]
[333069343,1721818734425,151.0,2.9e-07,2]
[333069344,1721818734894,151.0,2.9e-07,2]
[333069345,1721818735427,151.0,2.9e-07,2]
[333069346,1721818735891,151.0,2.9e-07,2]
[333069347,1721818736361,151.0,2.9e-07,2]
[333069348,1721818736782,151.0,2.9e-07,2]
[333069349,1721818737298,151.0,2.9e-07,2]
[333069350,1721818738345,151.0,2.9e-07,2]
[333069351,1721818738695,151.0,2.9e-07,2]
[333069352,1721818739148,151.0,2.9e-07,2]
[333069353,1721818739606,151.0,2.9e-07,2]
[333069354,1721818740614,151.0,2.9e-07,2]
[333069355,1721818741274,151.0,2.9e-07,2]
[333069356,1721818741958,151.0,2.9e-07,2]
[333069357,1721818742454,151.0,2.9e-07,2]
[333069358,1721818742940,151.0,2.9e-07,2]
[333069359,1721818743457,151.0,2.9e-07,2]
[333069360,1721818743876,151.0,2.9e-07,2]
[333069361,1721818744325,151.0,2.9e-07,2]
[333069362,1721818744682,151.0,2.9e-07,2]
[333069363,1721818745089,151.0,2.9e-07,2]
[333069364,1721818745551,151.0,2.9e-07,2]
[333069365,1721818746005,109.52675267,2.9e-07,2]
[333069366,1721818746030,41.47324733,2.9e-07,2]
[333069367,1721818746503,151.0,2.9e-07,2]
[333069368,1721818746926,151.0,2.9e-07,2]
[333069369,1721818781623,961.18833488,5e-05,2]
[333069370,1721818795569,201.41667186,5e-05,2]
[333069371,1721818831627,961.18833488,5e-05,2]
[333069372,1721818864179,946.5561817,6.061e-05,2]
[333069373,1721818874409,385.39387054,6.061e-05,10]
[333069374,1721818886215,225.18734189,9e-05,2]
[333069375,1721818889629,961.18833488,6.061e-05,2]
[333069376,1721818907668,192.14261377,9.982e-05,2]
[333069377,1721818957221,256.92924703,9e-05,10]
[333069378,1721819042916,214.10770586,9e-05,10]
[333069379,1721819103605,250.0,9.989e-05,2]
[333069380,1721819134043,-226.2,0.000149,31]
[333069381,1721819134068,-226.2,0.000149,31]
[333069382,1721819134094,-226.2,0.000149,31]
[333069383,1721819134118,-226.2,0.000149,31]
[333069384,1721819134142,-226.2,0.000149,31]
[333069385,1721819134166,-226.2,0.000149,31]
[333069386,1721819134190,-226.2,0.000149,31]
[333069387,1721819134214,-226.2,0.000149,31]
[333069388,1721819134237,-226.2,0.000149,31]
[333069389,1721819134263,-226.2,0.000149,31]
[333069390,1721819134288,-226.2,0.000149,31]
[333069391,1721819134315,-226.2,0.000149,31]
[333069392,1721819134339,-226.2,0.000149,31]
[333069393,1721819134363,-226.2,0.000149,31]
[333069394,1721819134387,-226.2,0.000149,31]
[333069395,1721819134412,-226.2,0.000149,31]
[333069396,1721819134438,-226.2,0.000149,31]
[333069397,1721819134463,-226.2,0.000149,31]
[333069398,1721819134489,-226.2,0.000149,31]
[333069399,1721819134513,-226.2,0.000149,31]
[333069400,1721819138916,155.0,9.989e-05,10]
[333069401,1721819200627,160.64,8.219e-05,2]
[333069402,1721819211848,3785.58811538,9.983e-05,2]
[333069403,1721819211871,10000.0,9.983e-05,2]
[333069404,1721819211895,8939.35188462,9.983e-05,2]
[333069405,1721819239923,155.0,9.989e-05,10]
[333069413,1721819325909,155.0,9.989e-05,10]
[333069425,1721819428926,155.0,9.989e-05,10]
[333069431,1721819431649,-250.0,0.00010028,2]
[333069432,1721819431658,-3162.14,0.00010119,2]
[333069433,1721819431668,-1000.0,0.00010136,2]
[333069434,1721819431677,-156.28693142,0.00010518,2]
[333069435,1721819431687,-150.0,0.00010682,2]
[333069436,1721819431696,-266.35744076,0.00010707,2]
[333069437,1721819431705,-150.0,0.00010743,2]
[333069438,1721819431715,-150.0,0.00010756,2]
[333069439,1721819431724,-1579.39324203,0.0001078,2]
[333069440,1721819431734,-189.3426765,0.0001078,2]
[333069441,1721819431743,-204.0,0.0001081,2]
[333069442,1721819431753,-300.0,0.0001085,2]
[333069443,1721819431763,-300.0,0.00010851,2]
[333069444,1721819431772,-150.0,0.00010852,2]
[333069445,1721819431781,-499.99,0.00010852,2]
[333069446,1721819431791,-150.99,0.00010852,2]
[333069447,1721819431800,-150.0,0.00010862,2]
[333069448,1721819431809,-1000.0,0.00010899,2]
[333069449,1721819431819,-150.0,0.00010899,2]
[333069450,1721819431828,-429.8818,0.000109,2]
[333069451,1721819431837,-1000.0,0.000109,2]
[333069452,1721819431846,-283.914,0.000109,2]
[333069453,1721819431855,-3338.84466929,0.000109,2]
[333069454,1721819431867,-2000.0,0.000109,2]
[333069455,1721819431883,-94.31863071,0.000109,2]
[333069456,1721819431891,-526.08537102,0.000109,2]
[333069457,1721819431902,-506.58096069,0.000109,2]
[333069458,1721819431913,-1284.35585131,0.000109,2]
[333069459,1721819431924,-726.72999162,0.000109,2]
[333069460,1721819431935,-2194.55656055,0.000109,2]
[333069461,1721819431945,-2416.0,0.000109,2]
[333069462,1721819431956,-3049.89,0.000109,2]
[333069463,1721819431975,-781.03258899,0.000109,2]
[333069464,1721819431987,-6211.0,0.000109,2]
[333069465,1721819432019,-13501.65778264,0.000109,2]
[333069476,1721819437644,-264.43385958,0.000109,2]
[333069477,1721819437655,-6284.7374,0.000109,2]
[333069478,1721819437891,-2468.08349137,0.000109,2]
[333069483,1721819439753,-666.786,0.000109,2]
[333069484,1721819439765,-2404.77292514,0.000109,2]
[333069485,1721819439824,-1867.99794774,0.000109,2]
[333069486,1721819439890,-25122.81362145,0.000109,2]
[333069496,1721819442634,-1048.6222479,0.000109,2]
[333069497,1721819442644,-2087.7494,0.000109,2]
[333069498,1721819442653,-155.4810863,0.00010909,2]
[333069499,1721819442663,-150.0,0.00010916,2]
[333069500,1721819442673,-157.62602006,0.0001094,2]
[333069501,1721819442684,-628.210864,0.0001094,2]
[333069502,1721819442695,-2214.16311594,0.0001094,2]
[333069503,1721819442705,-200.0,0.00010959,2]
[333069504,1721819442714,-250.0,0.00010959,2]
[333069505,1721819442723,-335.68,0.00010959,2]
[333069506,1721819442733,-279.73,0.00010959,2]
[333069507,1721819442742,-186.22373766,0.00010959,2]
[333069508,1721819442754,-46.88626234,0.00010959,2]
[333069509,1721819442763,-194.26,0.00010959,2]
[333069510,1721819442772,-161.88,0.00010959,2]
[333069511,1721819442782,-809.42,0.00010959,2]
[333069512,1721819442791,-29.1255989,0.00010988,2]
[333069513,1721819442807,-120.8744011,0.00010988,2]
[333069514,1721819442816,-376.94903729,0.00010999,2]
[333069515,1721819442825,-500.0,0.00010999,2]
[333069516,1721819442835,-335.4681348,0.00010999,2]
[333069517,1721819442844,-530.01565204,0.00010999,2]
[333069518,1721819442854,-500.0,0.00010999,2]
[333069519,1721819442863,-500.0,0.00010999,2]
[333069520,1721819442873,-500.0,0.00010999,2]
[333069521,1721819442882,-500.0,0.00010999,2]
[333069522,1721819442891,-506.39610341,0.00010999,2]
[333069523,1721819442901,-337790.29667136,0.00011,2]
[333069524,1721819442913,-880.36175698,0.00011,2]
[333069525,1721819442933,-707.0740541,0.00011,2]
[333069526,1721819442944,-730.07140233,0.00011,2]
[333069530,1721819443152,-652.62529538,0.00011,2]
[333069532,1721819443164,-657.39,0.00011,2]
[333069534,1721819443184,-606.79809421,0.00011,2]
[333069535,1721819443209,-8479.63585047,0.00011,2]
[333069540,1721819445708,-943.31862009,0.00011,2]
[333069541,1721819445805,-1283.8450912,0.00011,2]
[333069542,1721819445816,-133978.95649334,0.00011,2]
[333069543,1721819446065,-6952.59621588,0.00011,2]
[333069544,1721819446075,-734.01641473,0.00011,2]
[333069545,1721819446090,-3688.68772933,0.00011,2]
[333069546,1721819446101,-1086.34273564,0.00011,2]
[333069547,1721819446112,-7462.43495099,0.00011,2]
[333069548,1721819446123,-535.83043785,0.00011,2]
[333069555,1721819821702,164.27,8.32e-05,2]
[333069557,1721819908016,155.0,8.32e-05,10]
[333069558,1721819978981,155.0,8.32e-05,10]
[333069560,1721820083995,121.37811538,8.32e-05,10]
[333069561,1721820084019,33.62188462,8.32e-05,10]
[333069562,1721820205026,199.64623514,8.32e-05,10]
[333069569,1721820449712,155.77596432,9.664e-05,2]
[333069575,1721820536561,164.27,8.219e-05,2]
[333069584,1721820595024,4490.3357122,9.984e-05,2]
[333069598,1721820631847,-165.81759558,0.00010064,2]
[333069599,1721820631857,-150.0,0.00010084,2]
[333069600,1721820631866,-9099.66403728,0.00010085,2]
[333069601,1721820631879,-2074.08917925,0.00010085,2]
[333069602,1721820631891,-1400.0,0.00010085,2]
[333069615,1721820633435,-89109.54155374,0.00010085,2]
[333069616,1721820633444,-250.0,0.00010107,2]
[333069617,1721820633454,-818.76,0.00010122,2]
[333069618,1721820633464,-282.64,0.00010122,2]
[333069619,1721820633473,-250.0,0.00010167,2]
[333069620,1721820633483,-150.0,0.00010218,2]
[333069621,1721820633492,-23900.0,0.00010223,2]
[333069622,1721820633501,-1000.0,0.00010272,2]
[333069623,1721820633510,-156.28693142,0.00010416,2]
[333069624,1721820633519,-499.99,0.00010904,2]
[333069625,1721820633528,-220.88,0.00010904,3]
[333069626,1721820633538,-500.0,0.00010911,2]
[333069627,1721820633547,-500.0,0.00010912,2]
[333069628,1721820633556,-1173.51,0.00010912,2]
[333069629,1721820633565,-150.99,0.00010912,2]
[333069630,1721820633575,-200.0,0.00010959,2]
[333069631,1721820633584,-250.0,0.00010959,2]
[333069632,1721820633593,-265.3,0.00010959,2]
[333069633,1721820633602,-11824.0,0.00010999,2]
[333069634,1721820633611,-1924.45221331,0.00010999,2]
[333069635,1721820633620,-306.76491957,0.00010999,2]
[333069636,1721820633629,-521.82541979,0.00010999,2]
[333069637,1721820633639,-181.61664686,0.00010999,2]
[333069638,1721820633648,-266.40488522,0.00010999,2]
[333069639,1721820633657,-175812.93034836,0.00011,2]
[333069640,1721820633668,-1267.15289726,0.00011,2]
[333069641,1721820633683,-676.1769388,0.00011,2]
[333069642,1721820633694,-500.0,0.00011,2]
[333069643,1721820633706,-1171.32115809,0.00011,2]
[333069644,1721820633718,-1653.10493737,0.00011,2]
[333069645,1721820633735,-52448.4532313,0.00011,2]
[333069646,1721820633751,-133255.84887794,0.00011,2]
[333069649,1721820637985,-1202.01693341,0.00011,2]
[333069650,1721820637998,-421.78588728,0.00011,2]
[333069651,1721820638075,-76402.97612161,0.00011,2]
[333069652,1721820638159,-1337.30407824,0.00011,2]
[333069653,1721820638170,-856.52203771,0.00011,2]
[333069654,1721820638182,-19074.73857867,0.00011,2]
[333069655,1721820638251,-11129.9312,0.00011,2]
[333069656,1721820639885,-4125.98200796,0.00011,2]
[333069658,1721820639897,-391.951146,0.00011,2]
[333069662,1721820639949,-2925.98626232,0.00011,2]
[333069663,1721820640124,-221.08,0.00010959,2]
[333069664,1721820640134,-777.406475,0.00011,2]
[333069665,1721820640146,-1458.91842534,0.00011,2]
[333069666,1721820640158,-1145.49596646,0.00011,2]
[333069667,1721820640170,-6432.84,0.00011,2]
[333069668,1721820640193,-1428.51281081,0.00011,2]
[333069669,1721820640204,-602.43099611,0.00011,2]
[333069670,1721820640259,-1325.0977214,0.00011,2]
[333069678,1721820642908,-3000.00002,0.00011,2]
[333069680,1721820642920,-15786.04645497,0.00011,2]
[333069682,1721820642932,-6666.1,0.00011,2]
[333069687,1721820642967,-6182.23250689,0.00011,2]
[333069689,1721820642980,-661.66608519,0.00011,2]
[333069695,1721820643023,-1719539.21208438,0.00011,2]
[333069697,1721820643034,-8823.99346952,0.00011,2]
[333069699,1721820643079,-1961.822625,0.00011,2]
[333069700,1721820643091,-18782.46252274,0.00011,2]
[333069701,1721820643102,-2248.95674392,0.00011,2]
[333069702,1721820643134,-609425.52227322,0.00011,2]
[333069703,1721820643184,-695.37743664,0.00011,2]
[333069704,1721820643235,-342.5093582,0.00011,2]
[333069705,1721820643288,-1354.751503,0.00011,2]
[333069706,1721820643299,-1377.53454,0.00011,2]
[333069743,1721820645951,-782.42653634,0.00011,2]
[333069761,1721820646125,-1333.08,0.00011,2]
[333069764,1721820646136,-313.354957,0.00011,2]
[333069771,1721820646193,-3929.113636,0.00011,2]
[333069773,1721820646204,-690.90239874,0.00011,2]
[333069780,1721820646263,-9252.54199913,0.00011,2]
[333069782,1721820646275,-337.66996,0.00011,2]
[333069788,1721820646329,-530.6,0.00011,2]
[333069803,1721820657119,293.19243531,9.962e-05,2]
[333069804,1721820667668,890.6234166,9.962e-05,2]
[333069805,1721820674177,160.93192008,0.0001,2]
[333069810,1721820736974,208.58276672,9.686e-05,2]
[333069812,1721820747763,826.44232538,0.0001,2]
[333069813,1721820752770,661.2751,9.985e-05,2]
[333069814,1721820802336,500.0,9.905e-05,2]
[333069815,1721821087999,154.84,8.219e-05,2]
[333069816,1721821231346,1255.87355409,9.962e-05,2]
[333069817,1721821322307,4.58868554,9.945e-05,2]
[333069818,1721821322330,949.22131446,9.945e-05,2]
[333069819,1721821349585,500.0,0.0001,2]
[333069820,1721821350910,304.64,0.0001,2]
[333069821,1721821413388,246.16093793,0.0001,2]
[333069822,1721821441921,7999.97774761,0.0001,2]
[333069828,1721821625321,156.51,8.219e-05,2]
[333069866,1721821831953,-150.77350798,9.932e-05,2]
[333069867,1721821831963,-250.0,0.00010022,2]
[333069868,1721821831973,-300.0,0.00010051,2]
[333069869,1721821831982,-2706.13496022,0.00010052,2]
[333069870,1721821831994,-704.92261432,0.00010052,2]
[333069871,1721821832005,-2332.32978955,0.00010052,2]
[333069872,1721821832017,-713.07366266,0.00010052,2]
[333069873,1721821832028,-893.59727248,0.00010052,2]
[333069874,1721821832050,-7803.11170077,0.00010052,2]
[333069875,1721821832059,-500.0,0.00010052,2]
[333069876,1721821832069,-287.7,0.00010055,2]
[333069877,1721821832079,-2796.0448167,0.00010065,2]
[333069878,1721821832090,-3527.6751833,0.00010065,2]
[333069879,1721821832100,-1000.0,0.00010138,2]
[333069880,1721821832110,-152.0,0.00010556,3]
[333069881,1721821832119,-11521.0,0.00010673,2]
[333069882,1721821832128,-150.0,0.00010875,2]
[333069883,1721821832138,-150.0,0.00010889,2]
[333069884,1721821832147,-1000.0,0.00010889,2]
[333069885,1721821832157,-499.99,0.00010889,2]
[333069886,1721821832167,-2540.36423253,0.0001089,2]
[333069887,1721821832176,-696.35,0.0001089,2]
[333069888,1721821832186,-458.3105,0.00010899,2]
[333069889,1721821832195,-4833.1285495,0.000109,2]
[333069890,1721821832207,-19802.2820505,0.000109,2]
[333069891,1721821832217,-4534.84459588,0.000109,2]
[333069892,1721821832227,-500.0,0.000109,2]
[333069893,1721821832237,-7762.3759,0.000109,2]
[333069894,1721821832246,-1000.0,0.000109,2]
[333069895,1721821832255,-2429.0462,0.000109,2]
[333069896,1721821832264,-4764.8295,0.000109,2]
[333069897,1721821832274,-617.9493,0.000109,2]
[333069898,1721821832285,-6582.9384,0.000109,2]
[333069899,1721821832294,-2529.3956,0.000109,2]
[333069900,1721821832304,-10092.26042119,0.000109,2]
[333069901,1721821832316,-404.4999995,0.000109,2]
[333069902,1721821832331,-477.90040767,0.000109,2]
[333069903,1721821832342,-11774.88911757,0.000109,2]
[333069905,1721821832354,-1.98825407,0.000109,2]
[333069906,1721821832363,-10581.76881151,0.000109,2]
[333069907,1721821832377,-500.0,0.000109,2]
[333069908,1721821832389,-919.70999,0.000109,2]
[333069909,1721821832404,-250.0,0.000109,2]
[333069910,1721821832415,-2744.26708576,0.000109,2]
[333069912,1721821832445,-347.96815075,0.000109,2]
[333069915,1721821832457,-3164.75000067,0.000109,2]
[333069916,1721821832480,-1257.21841237,0.000109,2]
[333069917,1721821837600,1548.42,0.00010997,17]
[333069919,1721821837732,651.58,0.00010997,20]
[333069940,1721821838212,-7361.13473056,0.000109,2]
[333069941,1721821838223,-369.88112095,0.000109,2]
[333069942,1721821838235,-2515.47398675,0.000109,2]
[333069946,1721821838467,-5332.08771068,0.000109,2]
[333069948,1721821838476,-20400.2533197,0.000109,2]
[333069949,1721821838486,-485.40005773,0.000109,2]
[333069950,1721821838495,-2321.83302592,0.000109,2]
[333069951,1721821838504,-196.84,0.00010902,2]
[333069952,1721821838514,-152.0,0.00010934,4]
[333069953,1721821838523,-3000.0,0.0001094,2]
[333069954,1721821838532,-829.77219537,0.00010944,2]
[333069955,1721821838541,-150.60070558,0.00010954,2]
[333069957,1721821838551,-200.0,0.00010959,2]
[333069959,1721821838560,-250.0,0.00010959,2]
[333069961,1721821838569,-184.24,0.00010959,2]
[333069962,1721821838579,-153.53,0.00010959,2]
[333069964,1721821838587,-767.67,0.00010959,2]
[333069966,1721821838597,-1548.42,0.00010997,2]
[333069967,1721821838607,-1548.42,0.00010997,5]
[333069968,1721821838616,-1548.42,0.00010997,8]
[333069969,1721821838626,-1548.42,0.00010997,11]
[333069970,1721821838635,-1548.42,0.00010997,14]
[333069971,1721821838645,-896.84,0.00010997,20]
[333069972,1721821838655,-1548.42,0.00010997,23]
[333069973,1721821838666,-1548.42,0.00010997,26]
[333069974,1721821838678,-7647.52905126,0.00010997,2]
[333069975,1721821838687,-490.03104429,0.00010999,2]
[333069976,1721821838697,-520.35245855,0.00010999,2]
[333069977,1721821838707,-268.50761917,0.00010999,2]
[333069978,1721821838718,-500.0,0.00010999,2]
[333069979,1721821838728,-580.25,0.00010999,2]
[333069980,1721821838739,-500.0,0.00010999,2]
[333069981,1721821838751,-508.39,0.00010999,2]
[333069982,1721821838760,-641.2,0.00010999,2]
[333069983,1721821838769,-500.0,0.00010999,2]
[333069984,1721821838778,-500.0,0.00010999,2]
[333069985,1721821838787,-505.48293878,0.00010999,2]
[333069986,1721821838796,-507.57125551,0.00010999,2]
[333069987,1721821838806,-514.37864434,0.00010999,2]
[333069988,1721821838816,-310.83778445,0.00010999,2]
[333069989,1721821838825,-505.5,0.00010999,2]
[333069990,1721821838834,-517.66539177,0.00010999,2]
[333069991,1721821838844,-819.4,0.00010999,2]
[333069992,1721821838853,-819.4,0.00010999,2]
[333069993,1721821838863,-819.4,0.00010999,2]
[333069994,1721821838872,-819.4,0.00010999,2]
[333069995,1721821838881,-819.4,0.00010999,2]
[333069996,1721821838890,-819.4,0.00010999,2]
[333069997,1721821838899,-819.4,0.00010999,2]
[333069998,1721821838908,-819.4,0.00010999,2]
[333069999,1721821838918,-819.4,0.00010999,2]
[333070000,1721821838927,-819.4,0.00010999,2]
[333070001,1721821838936,-819.4,0.00010999,2]
[333070002,1721821838947,-819.4,0.00010999,2]
[333070003,1721821838957,-819.4,0.00010999,2]
[333070004,1721821838968,-819.4,0.00010999,2]
[333070005,1721821838979,-819.4,0.00010999,2]
[333070006,1721821838989,-819.4,0.00010999,2]
[333070007,1721821838998,-819.4,0.00010999,2]
[333070008,1721821839008,-819.4,0.00010999,2]
[333070009,1721821839017,-819.4,0.00010999,2]
[333070010,1721821839026,-819.4,0.00010999,2]
[333070011,1721821839036,-819.4,0.00010999,2]
[333070012,1721821839046,-819.4,0.00010999,2]
[333070013,1721821839056,-819.4,0.00010999,2]
[333070014,1721821839065,-819.55374715,0.00010999,2]
[333070015,1721821839075,-534.93394803,0.00010999,2]
[333070016,1721821839084,-200.0,0.00011,2]
[333070017,1721821839094,-1676236.60954286,0.00011,2]
[333070018,1721821839127,-792.29140115,0.00011,2]
[333070019,1721821839184,-1737.50497,0.00011,2]
[333070020,1721821839304,1548.42,0.00010997,32]
[333070021,1721821839422,1548.42,0.00010997,35]
[333070022,1721821839521,1548.42,0.00010997,38]
[333070023,1721821839600,1548.42,0.00010997,41]
[333070025,1721821839743,1548.42,0.00010997,44]
[333070030,1721821840002,1548.42,0.00010997,47]
[333070031,1721821840061,-1548.42,0.00010997,29]
[333070032,1721821840070,-4300.15412192,0.00011,2]
[333070033,1721821840116,-774.46656194,0.00011,2]
[333070034,1721821840222,-337.165,0.00011,2]
[333070035,1721821840277,-1873.3,0.00011,2]
[333070037,1721821840576,1548.42,0.00010997,50]
[333070038,1721821840866,1548.42,0.00010997,53]
[333070039,1721821841173,1548.42,0.00010997,56]
[333070040,1721821841436,1548.42,0.00010997,59]
[333070041,1721821841715,1548.42,0.00010997,62]
[333070042,1721821842027,1548.42,0.00010997,65]
[333070043,1721821842270,1330.98352981,0.00010997,68]
[333070044,1721821842290,217.43647019,0.00010997,68]
[333070045,1721821842567,1548.46001458,0.00010997,71]
[333070068,1721821843065,-165.76127034,0.000109,2]
[333070069,1721821843075,-211.35566075,0.00011,2]
[333070070,1721821843172,-1594.46534987,0.00011,2]
[333070071,1721821843384,-8907.0,0.00011,2]
[333070082,1721821846223,-1317.260763,0.000108,2]
[333070083,1721821846276,-859.71593629,0.000108,2]
[333070084,1721821846439,-5856.81037313,0.000108,2]
[333070088,1721821910506,145412.53,6.781e-05,7]
[333070089,1721821910533,246700.569108,6.781e-05,7]
[333070090,1721821934134,264.18925685,8.219e-05,2]
[333070093,1721821974259,176.00650008,8.219e-05,2]
[333070094,1721821975388,71319.4111451,6.781e-05,7]
[333070095,1721822140744,1047.34,0.00010997,32]
[333070096,1721822140985,1047.34,0.00010997,35]
[333070097,1721822141238,1047.34,0.00010997,38]
[333070098,1721822141700,1047.34,0.00010997,41]
[333070099,1721822141964,1047.34,0.00010997,44]
[333070100,1721822142228,1047.34,0.00010997,47]
[333070101,1721822142467,1047.34,0.00010997,50]
[333070102,1721822142721,1047.34,0.00010997,53]
[333070103,1721822142980,1047.34,0.00010997,56]
[333070104,1721822143258,1047.34,0.00010997,59]
[333070105,1721822143521,1047.34,0.00010997,62]
[333070106,1721822143969,1047.34,0.00010997,65]
[333070107,1721822144230,1047.34,0.00010997,68]
[333070108,1721822144501,1047.52120573,0.00010997,71]
[333070109,1721822153917,156.51,8.219e-05,2]
[333070114,1721822783613,156.51,8.355e-05,2]
[333070171,1721823032299,-166.66666666,9.8e-05,2]
[333070172,1721823032309,-250.0,0.00010052,2]
[333070173,1721823032318,-436.43793814,0.00010127,2]
[333070174,1721823032327,-250.0,0.00010207,2]
[333070175,1721823032336,-300.0,0.00010244,2]
[333070176,1721823032345,-300.0,0.00010244,2]
[333070177,1721823032354,-294.3820652,0.00010245,2]
[333070178,1721823032365,-23595.6179348,0.00010245,2]
[333070179,1721823032375,-1000.0,0.00010269,2]
[333070180,1721823032384,-150.77350798,0.00010536,2]
[333070181,1721823032393,-150.0,0.00010799,2]
[333070182,1721823032403,-23843.6721374,0.000108,2]
[333070183,1721823032414,-53678.54079018,0.000108,2]
[333070184,1721823032423,-457.619,0.00010916,2]
[333070185,1721823032432,-1310.956,0.00010916,2]
[333070186,1721823032441,-5825.0,0.00010916,2]
[333070187,1721823032451,-12776.005,0.00010916,2]
[333070188,1721823032460,-1201.0,0.00010916,2]
[333070189,1721823032469,-202.512,0.00010916,2]
[333070190,1721823032478,-200.0,0.00010959,2]
[333070191,1721823032487,-250.0,0.00010959,2]
[333070192,1721823032496,-1500.0,0.00010959,5]
[333070193,1721823032505,-500.0,0.00010999,2]